bitfinex-derivatives/quotes_ETHF0:USTF0_20250528
["timestamp","ask_amount","ask_price","bid_price","bid_amount"]
[1748471561874,4.46977,2642.1,2642.0,1.97535]
[1748471562667,5.71727,2642.1,2642.0,1.2186]
[1748471563975,5.71727,2642.1,2642.0,1.97538]
[1748471565078,5.71727,2642.1,2642.0,1.2186]
[1748471567979,4.46977,2642.1,2642.0,1.97538]
[1748471568275,4.46977,2642.1,2642.0,1.2186]
[1748471568475,5.71877,2642.1,2642.0,1.2186]
[1748471570375,5.71877,2642.1,2642.0,2.05001908]
[1748471570580,5.71877,2642.1,2642.0,1.29323908]
[1748471570777,5.71877,2642.1,2642.0,2.05001908]
[1748471571879,5.71877,2642.1,2642.0,1.29323908]
[1748471572078,5.71877,2642.1,2642.0,2.05001908]
[1748471572579,5.71877,2642.1,2642.0,1.29323908]
[1748471574084,5.71877,2642.1,2642.0,0.07463908]
[1748471575778,0.75683,2641.8,2641.7,0.00568193]
[1748471576474,2.08083,2641.8,2641.7,0.00568193]
[1748471584483,2.08083,2641.8,2641.7,0.08032101]
[1748471588282,7.08083,2641.8,2641.7,0.08032101]
[1748471588693,0.75709,2640.9,2640.8,0.6285]
[1748471588881,4.45109,2640.9,2640.8,0.6285]
[1748471589078,8.79455,2640.9,2640.3,0.75726]
[1748471589286,0.75726,2640.3,2640.2,3.96507]
[1748471589798,0.75725,2640.4,2640.3,0.75724]
[1748471589978,0.75726,2640.4,2640.3,0.75725]
[1748471593904,0.75726,2640.3,2640.2,3.2078]
[1748471594097,0.75726,2640.3,2640.2,3.96509]
[1748471594283,0.75726,2640.3,2640.2,3.2078]
[1748471594787,0.75732,2640.1,2640.0,1.26698193]
[1748471594988,0.75732,2640.1,2640.0,2.02433193]
[1748471597089,4.45132,2640.1,2640.0,1.26698193]
[1748471597285,4.45132,2640.1,2640.0,0.00568193]
[1748471598798,0.75758,2639.2,2639.1,3.2078]
[1748471599000,5.58885,2639.4,2638.8,3.2078]
[1748471599198,0.75766,2638.9,2638.8,3.96547]
[1748471599494,0.75763,2639.1,2638.9,0.75765]
[1748471599690,0.00568193,2639.3,2639.0,0.75762]
[1748471599897,0.1136,2639.1,2639.0,0.75762]
[1748471600285,0.1136,2639.1,2638.9,0.6573]
[1748471600593,0.75764,2639.0,2638.9,0.6573]
[1748471600800,4.45264,2639.0,2638.9,1.41497]
[1748471601097,4.45264,2639.0,2638.9,0.6573]
[1748471601403,3.695,2639.0,2638.9,1.41497]
[1748471601795,4.45264,2639.0,2638.9,1.41497]
[1748471602191,4.45264,2639.0,2638.9,0.6573]
[1748471603089,4.45264,2639.0,2638.9,1.41496]
[1748471603293,3.695,2639.0,2638.9,1.41496]
[1748471603494,3.695,2639.0,2638.9,2.72736]
[1748471603689,4.45264,2639.0,2638.9,2.72736]
[1748471604601,4.45264,2639.0,2638.9,1.9697]
[1748471605500,4.45264,2639.0,2638.9,2.72736]
[1748471607698,4.45264,2639.0,2638.9,1.9697]
[1748471607906,1.89425,2638.8,2637.9,3.2078]
[1748471608095,0.75789,2638.1,2638.0,0.6716]
[1748471608400,0.75789,2638.1,2638.0,1.42951]
[1748471608700,8.91005,2638.3,2638.2,0.75787]
[1748471608892,3.2078,2638.6,2638.4,0.75778]
[1748471609094,4.4532,2638.8,2638.7,0.75772]
[1748471609298,3.96549,2638.8,2638.7,0.75772]
[1748471609501,0.75775,2638.7,2638.6,0.75773]
[1748471609703,0.7578,2638.5,2638.4,0.75778]
[1748471609999,0.75782,2638.4,2638.3,0.75782]
[1748471610402,2.0032,2638.5,2638.4,0.75779]
[1748471610601,1.2454,2638.5,2638.4,0.75779]
[1748471611203,2.00318,2638.5,2638.4,0.75779]
[1748471612597,1.2454,2638.5,2638.4,0.75779]
[1748471612798,0.75782,2638.4,2638.3,0.75781]
[1748471613199,0.75782,2638.4,2638.2,1.9563]
[1748471613200,2.0032,2638.5,2638.4,0.75781]
[1748471614704,1.2454,2638.5,2638.4,0.75781]
[1748471615094,0.75778,2638.5,2638.4,0.83244908]
[1748471615998,2.05648,2638.5,2638.4,0.83244908]
[1748471619813,0.1136,2638.6,2638.5,0.75778]
[1748471620108,0.87135,2638.6,2638.5,2.07158]
[1748471620310,0.75778,2638.5,2638.4,0.07463908]
[1748471620612,2.04368,2638.5,2638.4,0.07463908]
[1748471621109,2.04368,2638.5,2638.4,0.83244908]
[1748471621513,2.04368,2638.5,2638.4,0.07463908]
[1748471622613,2.04368,2638.5,2638.4,0.83244908]
[1748471623003,2.04368,2638.5,2638.4,0.07463908]
[1748471624020,2.04368,2638.5,2638.4,0.83244908]
[1748471624223,2.04368,2638.5,2638.4,0.07463908]
[1748471624815,2.04368,2638.5,2638.4,0.83244908]
[1748471624816,0.75778,2638.5,2638.4,0.83244908]
[1748471626221,0.1136,2638.6,2638.5,0.75778]
[1748471626428,0.1136,2638.6,2638.5,2.00188]
[1748471626817,0.1136,2638.6,2638.5,2.66078]
[1748471627226,0.87135,2638.6,2638.5,2.66078]
[1748471628024,0.1136,2638.6,2638.5,2.66078]
[1748471628429,0.87135,2638.6,2638.5,2.66078]
[1748471628624,0.1136,2638.6,2638.5,2.66078]
[1748471628925,0.1136,2638.6,2638.5,7.66078]
[1748471629529,0.1136,2638.6,2638.5,2.66078]
[1748471630916,0.10794065,2638.6,2638.5,2.66078]
[1748471631322,0.10794065,2638.6,2638.5,2.73541908]
[1748471632829,0.86569065,2638.6,2638.5,2.73541908]
[1748471633134,2.16239065,2638.6,2638.5,2.73541908]
[1748471635932,1.40464065,2638.6,2638.5,2.73541908]
[1748471636630,2.16239065,2638.6,2638.5,2.73541908]
[1748471637529,1.40464065,2638.6,2638.5,2.73541908]
[1748471637727,0.10794065,2638.6,2638.5,2.73541908]
[1748471638035,0.86569065,2638.6,2638.5,1.49131908]
[1748471639931,0.10794065,2638.6,2638.5,1.49131908]
[1748471640433,0.86569065,2638.6,2638.5,1.49131908]
[1748471640634,0.10794065,2638.6,2638.5,1.49131908]
[1748471642432,4.4905,2639.0,2638.9,0.75766]
[1748471642631,5.24814,2639.0,2638.9,0.75766]
[1748471643034,4.4905,2639.0,2638.9,0.75766]
[1748471643736,4.4905,2639.0,2638.9,1.38336]
[1748471645435,4.4905,2639.0,2638.9,1.45799908]
[1748471645833,5.24814,2639.0,2638.9,1.45799908]
[1748471646033,4.4905,2639.0,2638.9,1.45799908]
[1748471646535,3.2078,2639.0,2638.9,1.45799908]
[1748471647337,0.1136,2639.2,2639.1,0.75761]
[1748471647730,1.4478,2639.2,2639.1,0.75761]
[1748471650339,1.4478,2639.2,2639.1,1.37951]
[1748471654943,0.1136,2639.2,2639.1,4.58731]
[1748471658044,1.3345,2639.6,2639.5,0.75749]
[1748471659048,2.09196,2639.6,2639.5,0.75749]
[1748471659233,1.3345,2639.6,2639.5,0.75749]
[1748471661341,1.3345,2639.6,2639.5,2.03839]
[1748471665347,1.3345,2639.6,2639.5,0.75749]
[1748471665653,2.09196,2639.6,2639.5,0.75749]
[1748471667544,1.3345,2639.6,2639.5,0.75749]
[1748471675657,0.11368193,2639.8,2639.7,0.75744]
[1748471676355,0.11368193,2639.8,2639.7,1.99384]
[1748471683861,0.00568193,2639.8,2639.7,1.99384]
[1748471691064,0.00568193,2639.8,2639.7,2.06847908]
[1748471697358,0.76309193,2639.8,2639.7,0.07463908]
[1748471697563,5.76309193,2639.8,2639.7,0.07463908]
[1748471697766,7.04289193,2639.8,2639.7,0.83206908]
[1748471697965,7.04289193,2639.8,2639.7,0.07463908]
[1748471698865,7.04289193,2639.8,2639.7,0.83206908]
[1748471699463,2.04289193,2639.8,2639.7,0.83206908]
[1748471699664,2.04289193,2639.8,2639.7,0.07463908]
[1748471701672,2.04289193,2639.8,2639.7,0.83206908]
[1748471702274,2.04289193,2639.8,2639.7,0.07463908]
[1748471703368,1.28548193,2639.8,2639.7,0.83206908]
[1748471706184,4.97548193,2639.8,2639.7,0.83206908]
[1748471707777,1.28548193,2639.8,2639.7,0.83206908]
[1748471709570,1.28548193,2639.8,2639.7,2.12316908]
[1748471710186,0.00568193,2639.8,2639.7,2.12316908]
[1748471723290,0.00568193,2639.8,2639.7,0.83206908]
[1748471724685,1.26908193,2639.8,2639.7,0.83206908]
[1748471726585,0.00568193,2639.8,2639.7,2.16256908]
[1748471731291,1.24758193,2639.8,2639.7,2.16256908]
[1748471732697,1.24758193,2639.8,2639.7,0.83206908]
[1748471735089,1.24758193,2639.8,2639.7,2.17066908]
[1748471735890,0.00568193,2639.8,2639.7,2.17066908]
[1748471741091,3.688,2640.4,2640.3,0.75726]
[1748471741286,4.3409,2640.4,2640.3,0.75726]
[1748471742293,5.09813,2640.4,2640.3,0.75726]
[1748471742486,4.3409,2640.4,2640.3,0.75726]
[1748471742990,5.09813,2640.4,2640.3,0.75726]
[1748471744600,5.09813,2640.4,2640.0,5.10111]
[1748471744601,9.3409,2640.4,2640.0,5.10111]
[1748471744902,2.08549,2640.3,2640.2,0.75726]
[1748471745494,1.3282,2640.3,2640.2,0.75726]
[1748471749893,1.3282,2640.3,2640.2,2.00856]
[1748471750800,0.65358193,2640.6,2640.5,0.75721]
[1748471750801,0.00568193,2640.6,2640.5,0.75721]
[1748471751091,1.28888193,2640.6,2640.5,0.75721]
[1748471751298,1.91628193,2640.6,2640.5,0.75721]
[1748471754500,1.91628193,2640.6,2640.5,1.41081]
[1748471763418,1.28888193,2640.6,2640.5,1.41081]
[1748471763619,1.28888193,2640.6,2640.5,2.03101]
[1748471766022,2.04606193,2640.6,2640.5,2.03101]
[1748471766217,1.28888193,2640.6,2640.5,2.10564908]
[1748471766521,2.04606193,2640.6,2640.5,2.10564908]
[1748471766724,2.04606193,2640.6,2640.5,0.83184908]
[1748471767616,1.28888193,2640.6,2640.5,0.83184908]
[1748471767922,2.04606193,2640.6,2640.5,0.83184908]
[1748471768219,1.28888193,2640.6,2640.5,0.83184908]
[1748471768724,3.686,2641.9,2641.2,0.757]
[1748471769015,4.9332,2641.9,2641.8,0.75683]
[1748471769218,4.3068,2641.9,2641.8,0.75683]
[1748471769424,3.686,2641.9,2641.8,0.75683]
[1748471769615,3.686,2641.9,2641.8,1.39873]
[1748471770020,3.686,2641.9,2641.8,2.67153]
[1748471770821,1.3023,2642.0,2641.9,0.7568]
[1748471771019,1.3023,2642.0,2641.8,1.39871]
[1748471771221,0.7568,2641.9,2641.8,0.75681]
[1748471771421,1.3776,2641.9,2641.8,0.75681]
[1748471771622,2.6799,2641.9,2641.8,0.75681]
[1748471771927,1.9231,2641.9,2641.8,0.75681]
[1748471772813,1.3023,2641.9,2641.8,0.75681]
[1748471777030,2.0591,2641.9,2641.8,0.75681]
[1748471777926,1.3023,2641.9,2641.8,0.75681]
[1748471778428,2.05911,2641.9,2641.8,0.75681]
[1748471778626,2.05911,2641.9,2641.6,3.21348193]
[1748471778827,0.75686,2641.7,2641.6,0.76255193]
[1748471779225,1.38666,2641.7,2641.6,0.76255193]
[1748471779431,2.62776,2641.7,2641.6,0.76255193]
[1748471784637,1.8709,2641.7,2641.6,0.76255193]
[1748471784936,2.62776,2641.7,2641.6,0.76255193]
[1748471785332,1.8709,2641.7,2641.6,0.76255193]
[1748471785534,0.00568193,2642.1,2642.0,0.75678]
[1748471785838,0.76243193,2642.1,2642.0,0.75678]
[1748471786037,0.75683,2642.0,2641.9,0.75679]
[1748471787037,2.05013,2642.0,2641.9,0.75679]
[1748471788438,2.05013,2642.0,2641.9,0.75166696]
[1748471791647,0.7568,2641.9,2641.8,0.07463908]
[1748471791945,3.3404,2641.9,2641.8,0.07463908]
[1748471792846,3.3404,2641.9,2641.8,0.83146908]
[1748471793343,3.3404,2641.9,2641.8,0.07463908]
[1748471797548,0.00568193,2642.1,2641.8,0.83146908]
[1748471797752,0.00568193,2642.1,2642.0,0.75678]
[1748471797944,0.00568193,2642.1,2642.0,2.04918]
[1748471798149,40.06342,2642.8,2642.5,0.75663]
[1748471798150,6.8908,2642.6,2642.5,0.75663]
[1748471798743,6.8908,2642.6,2642.5,2.04903]
[1748471799339,8.1961,2642.6,2642.5,2.04903]
[1748471802145,8.9527,2642.6,2642.5,2.04903]
[1748471802342,8.1961,2642.6,2642.5,2.04903]
[1748471802545,4.9883,2642.6,2642.5,2.04903]
[1748471802946,0.00375105,2642.8,2642.7,0.75658]
[1748471803347,0.00375105,2642.8,2642.7,2.07338]
[1748471803749,3.2078,2643.3,2643.2,0.75643]
[1748471803944,6.8908,2643.3,2643.2,0.75643]
[1748471804349,5.66703,2643.6,2643.5,0.75635]
[1748471804554,4.9107,2643.6,2643.5,0.75635]
[1748471804755,5.66702,2643.6,2643.5,0.75635]
[1748471805158,4.9107,2643.6,2643.5,0.75635]
[1748471805458,5.66702,2643.6,2643.5,0.75635]
[1748471805645,4.9107,2643.6,2643.5,0.75635]
[1748471807061,5.66702,2643.6,2643.5,0.75635]
[1748471807556,1.2277,2643.6,2643.5,0.75635]
[1748471807758,0.75631,2643.7,2643.6,0.75629]
[1748471808060,0.75634,2643.6,2643.5,0.75633]
[1748471808458,0.75631,2643.7,2643.6,0.75629]
[1748471808662,0.75637,2643.5,2643.4,0.75635]
[1748471808959,2.01153,2643.6,2643.5,0.75635]
[1748471810162,1.2552,2643.6,2643.5,0.75635]
[1748471810858,2.01152,2643.6,2643.5,0.75635]
[1748471812357,0.6615,2644.1,2643.6,1.8908]
[1748471812653,0.75622,2644.0,2643.9,0.7562]
[1748471813058,2.08632,2644.0,2643.9,0.7562]
[1748471813467,2.08632,2644.0,2643.8,0.75625]
[1748471813468,0.75626,2643.9,2643.8,0.75625]
[1748471813665,2.08636,2643.9,2643.8,0.75625]
[1748471815066,0.75626,2643.8,2643.7,2.66497]
[1748471815363,2.08636,2643.8,2643.7,2.66497]
[1748471821169,1.3301,2643.8,2643.7,2.66497]
[1748471821866,0.75629,2643.7,2643.6,0.74803908]
[1748471822770,0.75629,2643.7,2643.6,1.50435908]
[1748471823873,2.08638,2643.8,2643.7,0.75629]
[1748471825275,1.3301,2643.8,2643.7,0.75629]
[1748471825473,2.08636,2643.8,2643.7,0.75629]
[1748471825673,1.3301,2643.8,2643.7,0.75629]
[1748471826173,1.3301,2643.8,2643.7,2.06179]
[1748471826368,2.08636,2643.8,2643.7,2.06179]
[1748471830384,3.96401,2644.0,2643.9,0.75623]
[1748471830574,3.2078,2644.0,2643.9,0.75623]
[1748471831779,4.4856,2644.0,2643.9,0.75623]
[1748471832179,1.2778,2644.0,2643.9,1.41453]
[1748471832785,40.03095,2644.8,2644.3,0.75612]
[1748471832786,1.2778,2644.6,2644.3,0.75612]
[1748471832976,2.03385,2644.6,2644.5,0.75606]
[1748471833784,1.2778,2644.6,2644.5,0.75606]
[1748471834285,1.2778,2644.6,2644.5,2.06446]
[1748471834689,2.03383,2644.6,2644.5,2.06446]
[1748471835389,0.75606,2644.5,2644.4,0.628]
[1748471835587,1.89031,2644.3,2643.8,3.2078]
[1748471835791,0.75626,2643.8,2643.7,0.6249]
[1748471835995,0.75629,2643.7,2643.6,0.83095908]
[1748471836191,2.10399,2643.7,2643.6,0.83095908]
[1748471838688,1.3477,2643.7,2643.6,2.16435908]
[1748471838888,2.10399,2643.7,2643.6,2.16435908]
[1748471840294,1.3477,2643.7,2643.6,2.16435908]
[1748471840588,4.43622,2644.0,2643.9,0.75623]
[1748471840793,5.76512,2644.0,2643.9,0.75623]
[1748471844295,2.08512,2644.0,2643.9,0.75623]
[1748471844497,1.3289,2644.0,2643.9,0.75623]
[1748471845498,2.0851,2644.0,2643.9,0.75623]
[1748471845700,1.3289,2644.0,2643.9,0.75623]
[1748471845997,2.0851,2644.0,2643.9,0.75623]
[1748471846189,1.3289,2644.0,2643.9,0.75623]
[1748471846593,2.0851,2644.0,2643.9,0.75623]
[1748471846895,0.75626,2643.9,2643.8,0.75624]
[1748471847092,0.75626,2643.8,2643.7,2.03157]
[1748471847289,0.75626,2643.8,2643.7,0.75627]
[1748471849898,1.2421,2643.9,2643.6,0.07463908]
[1748471850103,0.75625,2643.9,2643.8,0.75626]
[1748471851205,0.75629,2643.8,2643.7,0.75627]
[1748471853000,0.75625,2643.9,2643.8,0.75623]
[1748471856204,0.75626,2643.8,2643.7,0.83090908]
[1748471857604,0.75625,2644.0,2643.9,0.7562]
[1748471857803,3.2078,2644.1,2644.0,0.7562]
[1748471858804,3.96398,2644.1,2644.0,0.7562]
[1748471860608,0.75618,2644.1,2644.0,0.7562]
[1748471862902,2.09448,2644.1,2644.0,0.7562]
[1748471864599,0.75618,2644.1,2644.0,0.7562]
[1748471864800,0.75618,2644.1,2644.0,1.9987]
[1748471865207,2.04856,2644.2,2644.1,0.75618]
[1748471867810,0.75618,2644.1,2644.0,1.99869]
[1748471868107,2.03488,2644.1,2644.0,1.99869]
[1748471872318,0.7562,2644.0,2643.9,2.05841]
[1748471872511,2.0096,2644.0,2643.9,2.05841]
[1748471873714,0.75635,2643.6,2643.5,0.75633]
[1748471873907,0.75635,2643.6,2643.5,18.67013]
[1748471874108,2.01945,2643.6,2643.5,18.67013]
[1748471874905,2.01945,2643.6,2643.5,1.38413]
[1748471879216,1.2631,2643.6,2643.5,1.38413]
[1748471879917,2.01942,2643.6,2643.5,1.38413]
[1748471880115,0.75635,2643.5,2643.4,3.2078]
[1748471880314,0.75638,2643.4,2643.3,0.00568193]
[1748471880516,2.03128,2643.4,2643.3,0.00568193]
[1748471880811,2.03128,2643.4,2642.9,0.6259]
[1748471880812,0.75649,2643.0,2642.9,0.6259]
[1748471881111,6.8878,2643.1,2643.0,0.75649]
[1748471881318,4.4997,2643.1,2643.0,0.75649]
[1748471881514,4.4997,2643.1,2643.0,2.67279]
[1748471882319,0.00568193,2643.3,2643.2,0.75643]
[1748471882811,0.76208193,2643.3,2643.2,0.75643]
[1748471883012,0.00568193,2643.3,2643.2,0.75643]
[1748471883314,0.76208193,2643.3,2643.2,0.75643]
[1748471883908,0.00568193,2643.3,2643.2,0.75643]
[1748471884819,0.00568193,2643.3,2643.2,0.83106908]
[1748471885019,1.22368193,2643.3,2643.2,0.83106908]
[1748471885725,0.00568193,2643.3,2643.2,0.83106908]
[1748471889917,0.00568193,2643.3,2643.2,2.10926908]
[1748471890412,1.22458193,2643.3,2643.2,2.10926908]
[1748471893419,0.75631,2643.7,2643.6,0.75629]
[1748471893723,2.00571,2643.7,2643.6,0.75629]
[1748471894426,3.2078,2643.8,2643.5,1.8326]
[1748471894721,3.2078,2643.8,2643.7,0.75629]
[1748471894923,2.77835,2643.9,2643.8,0.75626]
[1748471897924,2.0221,2643.9,2643.8,0.75626]
[1748471898732,2.0221,2643.9,2643.8,1.99836]
[1748471898929,1.3467,2643.9,2643.8,1.99836]
[1748471901131,1.38286,2644.2,2644.1,0.75618]
[1748471903033,2.64606,2644.2,2644.1,0.75618]
[1748471906332,0.75623,2644.1,2644.0,0.75619]
[1748471906531,2.04783,2644.1,2644.0,0.75619]
[1748471907535,2.04778,2644.1,2644.0,0.75619]
[1748471907735,1.2916,2644.1,2644.0,0.75619]
[1748471908135,1.2916,2644.1,2644.0,1.36949]
[1748471908831,4.43506,2644.6,2644.5,0.75606]
[1748471909038,3.679,2644.6,2644.5,0.75606]
[1748471909335,4.43503,2644.6,2644.5,0.75606]
[1748471909738,3.679,2644.6,2644.5,0.75606]
[1748471910133,4.9949,2644.6,2644.5,0.75606]
[1748471910732,4.9949,2644.6,2644.5,1.36596]
[1748471911039,4.9949,2644.6,2644.5,0.75606]
[1748471912133,5.75093,2644.6,2644.5,0.75606]
[1748471912435,4.9949,2644.6,2644.5,0.75606]
[1748471913040,5.75093,2644.6,2644.5,0.75606]
[1748471913740,4.9949,2644.6,2644.5,0.75606]
[1748471914641,5.75093,2644.6,2644.5,0.75606]
[1748471914840,4.9949,2644.6,2644.5,0.75606]
[1748471915937,4.9949,2644.6,2644.5,2.61636]
[1748471916243,4.9949,2644.6,2644.5,2.69099908]
[1748471917746,1.3159,2644.6,2644.5,2.69099908]
[1748471919148,2.07193,2644.6,2644.5,1.45869908]
[1748471920252,1.3159,2644.6,2644.5,1.45869908]
[1748471921752,1.3159,2644.6,2644.5,2.72979908]
[1748471923853,3.3208,2644.7,2644.6,0.75603]
[1748471924055,3.3208,2644.7,2644.6,2.02293]
[1748471924258,0.75603,2644.6,2644.5,0.07463908]
[1748471924453,3.30643,2644.6,2644.5,0.07463908]
[1748471924659,8.30643,2644.6,2644.5,0.07463908]
[1748471925359,3.30643,2644.6,2644.5,0.07463908]
[1748471926152,3.30643,2644.6,2644.5,0.83069908]
[1748471926555,2.66913,2644.6,2644.5,0.83069908]
[1748471929859,2.66913,2644.6,2644.5,0.07463908]
[1748471933768,2.66913,2644.6,2644.5,0.83069908]
[1748471933969,2.66913,2644.6,2644.5,0.07463908]
[1748471936764,2.66913,2644.6,2644.5,0.83069908]
[1748471937570,2.66913,2644.6,2644.5,0.07463908]
[1748471937871,2.66913,2644.6,2644.5,0.83069908]
[1748471938772,1.2672,2644.6,2644.5,0.83069908]
[1748471938963,0.113,2644.7,2644.6,0.75603]
[1748471939168,2.02156,2644.9,2644.8,0.75598]
[1748471939465,1.2656,2644.9,2644.7,0.75599]
[1748471939667,0.756,2644.7,2644.6,2.7322]
[1748471940067,0.756,2644.7,2644.6,0.6361]
[1748471940264,0.756,2644.7,2644.6,0.75603]
[1748471940460,0.75603,2644.6,2644.5,0.83067908]
[1748471940768,1.39963,2644.6,2644.5,0.83067908]
[1748471944673,0.6436,2644.6,2644.5,0.83067908]
[1748471945674,1.39963,2644.6,2644.5,0.83067908]
[1748471949473,0.6436,2644.6,2644.5,0.83067908]
[1748471949673,0.6436,2644.6,2644.5,2.09717908]
[1748471949869,1.3857,2644.7,2644.6,0.75603]
[1748471950070,1.3857,2644.7,2644.5,0.07463908]
[1748471950277,0.75603,2644.6,2644.5,0.07463908]
[1748471950477,1.38163,2644.6,2644.5,0.07463908]
[1748471952669,1.38654709,2644.6,2644.5,0.07463908]
[1748471954773,1.89023,2644.4,2643.7,3.2078]
[1748471955081,0.75625,2643.9,2643.8,1.39534]
[1748471955467,0.75625,2643.9,2643.8,0.6391]
[1748471957482,0.75625,2643.9,2643.8,1.39536]
[1748471957883,2.00945,2643.9,2643.8,0.6391]
[1748471959879,0.75625,2643.9,2643.8,1.46999908]
[1748471967981,1.98602,2644.0,2643.9,0.75623]
[1748471968274,1.98602,2644.0,2643.9,2.63813]
[1748471969278,1.98602,2644.0,2643.9,1.8819]
[1748471970187,1.98602,2644.0,2643.9,2.63813]
[1748471970381,0.75622,2644.0,2643.9,2.63813]
[1748471970585,0.7562,2644.1,2644.0,0.75616]
[1748471970886,0.7562,2644.1,2644.0,2.02216]
[1748471971078,3.96395,2644.3,2644.2,0.75615]
[1748471971387,3.676,2644.5,2644.4,0.75609]
[1748471971388,4.43208,2644.5,2644.4,0.75609]
[1748471971884,2.00427709,2644.6,2644.5,0.75606]
[1748471972288,0.76097709,2644.6,2644.5,0.75606]
[1748471974088,2.03617709,2644.6,2644.5,0.75606]
[1748471975988,0.00491709,2644.6,2644.5,0.75606]
[1748471976195,0.113,2644.7,2644.6,0.75603]
[1748471980496,0.113,2644.7,2644.6,18.03103]
[1748471982491,0.113,2644.7,2644.6,18.03003]
[1748471985697,0.00568193,2644.8,2644.7,0.756]
[1748471985899,1.2222,2645.3,2645.2,0.75586]
[1748471986796,1.97803,2645.3,2645.2,0.75586]
[1748471987503,1.2222,2645.3,2645.2,0.75586]
[1748471988002,1.97803,2645.3,2645.2,0.75586]
[1748471988703,1.2222,2645.3,2645.2,0.75586]
[1748471989101,1.97803,2645.3,2645.2,0.75586]
[1748471990407,1.97803,2645.3,2645.2,0.83049908]
[1748471990892,1.2222,2645.3,2645.2,0.83049908]
[1748471992400,1.2222,2645.3,2645.2,2.05389908]
[1748471992995,0.75578,2645.5,2645.2,2.05389908]
[1748471993200,2.09198,2645.5,2645.4,0.7558]
[1748471994005,1.3362,2645.5,2645.4,0.7558]
[1748471994809,2.09197,2645.5,2645.4,0.7558]
[1748471995303,2.73647,2645.5,2645.4,0.7558]
[1748471999408,2.09197,2645.5,2645.4,0.7558]
[1748471999601,1.3362,2645.5,2645.4,0.7558]
[1748472000107,1.3362,2645.5,2645.4,2.041]
[1748472004114,0.6502,2645.6,2645.4,2.041]
[1748472004115,3.2078,2645.9,2645.8,0.75569]
[1748472004317,3.96346,2645.9,2645.8,0.75569]
[1748472005416,3.96346,2645.9,2645.6,1.88936]
[1748472005417,0.75574,2645.7,2645.6,0.7557]
[1748472006215,2.72794,2645.7,2645.6,0.7557]
[1748472007318,0.75578,2645.5,2645.4,17.34063908]
[1748472007619,2.03896,2645.6,2645.5,0.75578]
[1748472010422,1.2832,2645.6,2645.5,0.75578]
[1748472011822,3.96339,2646.2,2646.1,0.7556]
[1748472012218,0.75565,2646.1,2646.0,0.75561]
[1748472012415,0.75566,2646.0,2645.9,0.75564]
[1748472012613,1.38526,2646.0,2645.9,0.75564]
[1748472013223,0.75569,2645.9,2645.8,0.75566]
[1748472013422,2.63259,2645.9,2645.8,0.75566]
[1748472013827,1.88923,2645.8,2645.4,0.07463908]
[1748472014122,1.2429,2645.8,2645.7,0.75572]
[1748472014324,0.75569,2645.8,2645.7,0.75572]
[1748472018325,4.2819,2645.9,2645.6,0.75573]
[1748472018326,0.75575,2645.7,2645.6,0.75573]
[1748472022631,0.75575,2645.6,2645.5,0.643]
[1748472023732,0.75575,2645.6,2645.5,1.39877]
[1748472026618,0.7558,2645.4,2645.3,0.6187]
[1748472026833,0.7558,2645.4,2645.3,1.37453]
[1748472027028,0.7558,2645.5,2645.4,0.75576]
[1748472027430,0.7558,2645.5,2645.4,18.01976]
[1748472030133,0.7558,2645.5,2645.4,0.75576]
[1748472030836,9.37886,2645.9,2645.4,1.88948]
[1748472031024,0.75573,2645.8,2645.7,0.75569]
[1748472032029,0.75573,2645.8,2645.7,0.83032908]
[1748472032225,0.75566,2646.0,2645.9,0.75561]
[1748472035139,0.75566,2646.0,2645.9,1.36811]
[1748472035937,0.75566,2646.0,2645.9,1.44274908]
[1748472036740,1.3318,2646.1,2646.0,0.75563]
[1748472036939,0.75551,2646.6,2646.1,0.7556]
[1748472037234,3.2078,2646.8,2646.1,0.7556]
[1748472037235,4.4265,2646.5,2646.4,0.75552]
[1748472037435,4.4265,2646.5,2646.4,3.42952]
[1748472037636,3.671,2646.5,2646.4,3.42952]
[1748472038232,1.2989,2646.7,2646.6,0.75546]
[1748472038442,0.75546,2646.6,2646.5,1.3419]
[1748472039739,0.75546,2646.6,2646.5,2.09739]
[1748472047943,0.75549,2646.5,2646.4,1.325]
[1748472048142,1.98279,2646.5,2646.4,1.325]
[1748472049839,1.98279,2646.5,2646.4,2.08052]
[1748472050247,0.75555,2646.3,2646.2,0.00567108]
[1748472050845,2.05375,2646.3,2646.2,1.38784108]
[1748472051039,2.05375,2646.3,2646.2,0.63227108]
[1748472051240,2.05375,2646.3,2646.2,0.70691016]
[1748472052242,2.05375,2646.3,2646.2,0.63227108]
[1748472054146,2.05375,2646.3,2646.2,0.70691016]
[1748472055153,2.05375,2646.3,2646.2,0.63227108]
[1748472058148,2.05375,2646.3,2646.2,0.70691016]
[1748472058955,2.05375,2646.3,2646.2,0.08031016]
[1748472059250,2.67235,2646.3,2646.2,0.00567108]
[1748472062055,2.05375,2646.3,2646.2,0.76124108]
[1748472062845,2.05375,2646.3,2646.2,0.00567108]
[1748472064757,2.05375,2646.3,2646.2,0.76124108]
[1748472065257,2.05375,2646.3,2646.2,0.83588016]
[1748472069058,2.05375,2646.3,2646.2,1.48298016]
[1748472069259,1.2982,2646.3,2646.2,1.48298016]
[1748472069558,2.05375,2646.3,2646.2,1.40834108]
[1748472070164,1.2982,2646.3,2646.2,1.40834108]
[1748472070659,0.75555,2646.3,2646.2,1.40834108]
[1748472071052,0.75555,2646.3,2646.2,2.69944108]
[1748472072062,0.75555,2646.3,2646.2,3.32054108]
[1748472073865,2.09625,2646.3,2646.2,0.00567108]
[1748472074069,2.72395,2646.3,2646.2,0.00567108]
[1748472074456,2.72395,2646.3,2646.2,0.08031016]
[1748472075063,3.38575,2646.3,2646.2,0.08031016]
[1748472075560,3.38575,2646.3,2646.2,0.00567108]
[1748472078772,0.75577,2645.5,2645.4,0.07463908]